bitfinex/quotes_ETHUSD_20250605
["timestamp","ask_amount","ask_price","bid_price","bid_amount"]
[1749111387862,2.61670116,2602.5,2602.4,9.877]
[1749111389687,2.61670116,2602.5,2602.4,8.283]
[1749111389994,2.61670116,2602.5,2602.4,9.878]
[1749111403824,2.61670116,2602.5,2602.4,9.881]
[1749111406019,0.55,2602.2,2601.6,8.287]
[1749111406223,2.2084,2601.8,2601.7,7.814]
[1749111406517,5.57901158,2601.8,2601.7,7.814]
[1749111408388,5.57901158,2601.8,2601.7,1.598]
[1749111409490,5.57901158,2601.8,2601.7,7.813]
[1749111410384,0.55,2601.8,2601.7,7.813]
[1749111410582,3.92061158,2601.8,2601.7,7.813]
[1749111411931,4.46999274,2601.8,2601.7,7.813]
[1749111412526,0.55,2601.7,2601.1,1.6373]
[1749111412826,3.37061158,2601.3,2601.2,7.813]
[1749111413504,3.37061158,2601.3,2601.2,1.598]
[1749111413701,4.25767274,2601.3,2601.2,1.598]
[1749111413914,4.25767274,2601.3,2601.2,7.816]
[1749111413915,5.87597274,2601.3,2601.2,7.816]
[1749111414229,5.53891158,2601.3,2601.2,7.816]
[1749111415429,5.53891158,2601.3,2601.2,16.104]
[1749111415588,5.53891158,2601.3,2601.2,8.288]
[1749111415794,5.53891158,2601.3,2601.2,16.104]
[1749111415992,5.53891158,2601.3,2601.2,8.288]
[1749111416290,6.09280274,2601.3,2601.2,9.886]
[1749111418538,4.47450274,2601.3,2601.2,9.886]
[1749111422091,6.02520274,2601.3,2601.2,16.101]
[1749111422547,6.02520274,2601.3,2601.2,8.288]
[1749111422691,9.39581432,2601.3,2601.2,9.887]
[1749111422898,2.1563,2601.2,2600.6,8.29]
[1749111423095,2.1563,2600.8,2600.7,7.818]
[1749111423346,2.1563,2600.8,2600.1,1.6458]
[1749111423635,3.37061158,2600.4,2600.1,1.6458]
[1749111424433,3.37061158,2600.4,2600.2,6.219]
[1749111425302,3.37061158,2600.4,2600.3,9.889]
[1749111427925,3.37061158,2600.4,2600.3,16.106]
[1749111428523,3.37061158,2600.6,2600.3,16.106]
[1749111428724,3.37061158,2601.0,2600.5,21.370232]
[1749111429058,3.37061158,2601.0,2600.6,29.598683]
[1749111429262,3.37061158,2601.0,2600.6,13.859186]
[1749111429446,3.37061158,2601.0,2600.6,5.64208]
[1749111429628,3.37061158,2601.0,2600.6,2.93568]
[1749111430751,3.37061158,2601.0,2600.5,1.5901]
[1749111431140,3.37061158,2601.0,2600.6,4.136551]
[1749111431342,3.37061158,2601.0,2600.6,2.237551]
[1749111431724,3.37061158,2601.0,2600.5,1.5901]
[1749111431930,3.37061158,2601.0,2600.6,2.956194]
[1749111432817,3.37061158,2600.8,2600.5,1.5901]
[1749111433957,3.37061158,2600.8,2600.6,13.366403]
[1749111434258,3.37061158,2600.8,2600.6,9.059849]
[1749111434556,3.37061158,2600.8,2600.7,10.0]
[1749111434733,3.37061158,2600.8,2600.6,6.256462]
[1749111435472,3.37061158,2600.8,2600.6,4.357462]
[1749111436053,3.37061158,2600.8,2600.6,3.972]
[1749111439685,3.37061158,2600.8,2600.6,3.560519]
[1749111441295,3.37061158,2600.8,2600.7,6.216]
[1749111442671,3.37061158,2601.0,2600.7,6.216]
[1749111444995,3.37061158,2600.8,2600.7,6.216]
[1749111445373,3.37061158,2600.8,2600.7,7.813]
[1749111448099,3.37061158,2601.4,2600.9,28.833841]
[1749111448397,3.37061158,2601.6,2601.1,32.140092]
[1749111448597,3.37061158,2601.4,2601.2,6.216]
[1749111448795,3.37061158,2601.4,2601.3,1.597]
[1749111450487,3.37061158,2601.4,2601.3,7.813]
[1749111453431,5.34517274,2601.4,2601.3,8.29]
[1749111453590,5.34517274,2601.4,2601.3,16.102]
[1749111458616,1.97456116,2601.4,2601.3,16.102]
[1749111458777,5.00811158,2601.4,2601.3,9.886]
[1749111459125,5.00811158,2601.4,2601.3,16.101]
[1749111461921,3.37061158,2601.4,2601.3,16.101]
[1749111462741,1.6546,2601.6,2601.3,16.101]
[1749111462955,3.37061158,2601.6,2601.3,16.101]
[1749111466308,3.37061158,2601.4,2601.3,8.29]
[1749111466533,3.37061158,2601.4,2601.3,16.101]
[1749111471232,3.37061158,2601.4,2601.3,8.29]
[1749111471528,3.92061158,2601.4,2601.3,16.101]
[1749111476597,3.92061158,2601.4,2601.3,9.886]
[1749111476739,5.98777085,2601.4,2601.3,9.886]
[1749111477278,2.1763,2601.3,2601.1,1.596]
[1749111477575,4.28652926,2601.2,2601.1,1.596]
[1749111478145,5.79842926,2601.2,2601.1,1.596]
[1749111478345,1.6161,2601.0,2599.9,1.5905]
[1749111478546,3.37061158,2600.4,2599.9,1.5905]
[1749111479680,1.6161,2600.6,2599.4,1.5655]
[1749111479681,3.37061158,2600.2,2599.4,1.5655]
[1749111479886,3.37061158,2600.2,2599.6,18.265673]
[1749111480074,3.37061158,2600.2,2599.6,8.265673]
[1749111480248,3.37061158,2600.2,2599.6,2.792261]
[1749111480441,4.98671158,2600.2,2599.7,10.0]
[1749111480646,4.98671158,2600.2,2599.5,6.216]
[1749111480647,3.37061158,2600.0,2599.6,12.179406]
[1749111480843,3.37061158,2600.0,2599.4,1.5655]
[1749111481082,2.11477116,2600.2,2599.4,1.5655]
[1749111481083,3.37061158,2599.8,2599.4,1.5655]
[1749111481288,3.37061158,2599.8,2599.5,6.216]
[1749111481488,3.37061158,2599.8,2598.9,30.0]
[1749111481708,3.37061158,2599.8,2598.7,30.0]
[1749111481907,3.37061158,2599.8,2598.4,0.76525235]
[1749111481908,4.89811158,2599.8,2598.5,33.37061158]
[1749111482235,3.37061158,2599.2,2598.2,30.0]
[1749111482374,3.37061158,2599.2,2598.1,0.02]
[1749111482375,3.37061158,2599.4,2598.4,40.0]
[1749111482722,3.86928274,2600.2,2599.1,40.0]
[1749111482935,4.99421158,2600.2,2599.3,10.0]
[1749111483072,4.99421158,2600.2,2599.2,6.223]
[1749111483073,3.37061158,2600.2,2599.5,10.0]
[1749111483270,3.37061158,2600.2,2599.6,10.0]
[1749111483497,3.37061158,2600.2,2599.7,12.944983]
[1749111483695,3.37061158,2600.2,2599.8,6.223]
[1749111484296,3.37061158,2600.2,2600.0,10.0]
[1749111484499,1.6323,2600.6,2600.0,0.1011]
[1749111484702,3.37061158,2600.4,2600.0,0.1011]
[1749111485315,3.37061158,2600.4,2600.1,9.888]
[1749111486099,3.37061158,2600.4,2600.2,6.224]
[1749111489454,3.37061158,2600.4,2600.3,6.223]
[1749111491951,5.27047274,2600.4,2600.1,8.292]
[1749111492155,2.44986116,2600.4,2600.3,1.599]
[1749111492340,5.82047274,2600.4,2600.3,1.599]
[1749111492651,5.76797274,2600.4,2600.3,1.599]
[1749111498256,5.03031158,2599.9,2599.7,8.294]
[1749111498489,2.2097,2599.9,2599.8,1.599]
[1749111499657,5.58031158,2599.9,2599.8,1.599]
[1749111499896,5.58031158,2599.9,2599.7,8.294]
[1749111500086,5.58031158,2599.9,2599.8,1.599]
[1749111501306,6.13834274,2599.9,2599.8,1.599]
[1749111502895,6.13834274,2599.9,2599.8,7.82]
[1749111503997,6.13834274,2599.9,2599.8,7.819]
[1749111505823,6.13834274,2599.9,2599.8,1.599]
[1749111505824,2.76773116,2599.9,2599.8,1.599]
[1749111506115,0.55,2599.8,2599.7,8.294]
[1749111506318,4.92650701,2599.8,2599.7,8.294]
[1749111506524,4.92650701,2599.8,2599.7,16.112]
[1749111507619,4.92650701,2599.8,2599.7,1.599]
[1749111512371,3.37061158,2599.9,2599.7,1.599]
[1749111514023,3.37061158,2599.9,2599.5,8.294]
[1749111514256,3.37061158,2599.7,2599.6,7.819]
[1749111518882,3.37061158,2599.7,2599.6,1.6]
[1749111519078,3.37061158,2599.7,2599.6,7.819]
[1749111519247,3.87206274,2599.7,2599.6,7.819]
[1749111519788,4.42206274,2599.7,2599.6,1.6]
[1749111520801,4.42206274,2599.7,2599.6,7.819]
[1749111523695,2.2152,2599.6,2599.5,8.294]
[1749111523873,2.82392627,2599.6,2599.5,9.891]
[1749111528177,4.52933785,2599.6,2599.5,9.891]
[1749111528485,3.92061158,2599.6,2599.5,9.891]
[1749111529497,3.37061158,2599.6,2599.5,16.111]
[1749111536824,3.37061158,2599.6,2599.5,9.891]
[1749111537031,3.37061158,2599.6,2599.5,16.111]
[1749111538173,0.55,2600.0,2599.5,16.111]
[1749111538390,3.37061158,2599.9,2599.5,16.111]
[1749111538726,3.76267274,2599.9,2599.5,16.111]
[1749111539743,3.37061158,2600.1,2599.5,16.111]
[1749111542018,3.37061158,2599.9,2599.5,16.111]
[1749111542211,3.37061158,2599.9,2599.6,7.816]
[1749111542418,3.37061158,2600.1,2599.6,7.816]
[1749111543427,3.37061158,2600.1,2599.7,9.892]
[1749111543634,3.37061158,2600.1,2599.8,1.597]
[1749111544439,3.70767274,2600.1,2599.8,1.597]
[1749111544769,3.37061158,2599.9,2599.8,1.597]
[1749111544916,3.37061158,2599.9,2599.8,7.816]
[1749111545570,3.37061158,2599.9,2599.8,1.597]
[1749111545879,3.37061158,2599.9,2599.8,7.816]
[1749111546021,0.52618727,2599.9,2599.8,7.816]
[1749111549839,1.07618727,2599.9,2599.8,1.597]
[1749111550039,1.07618727,2599.9,2599.8,7.816]
[1749111551650,0.52618727,2599.9,2599.8,7.816]
[1749111551852,0.33706116,2600.1,2599.8,7.816]
[1749111552878,3.37061158,2600.2,2599.8,7.816]
[1749111553681,3.37061158,2600.0,2599.8,7.816]
[1749111556016,3.37061158,2600.0,2599.7,8.295]
[1749111556322,1.6131,2600.1,2599.9,7.816]
[1749111557028,1.6131,2600.1,2599.9,1.597]
[1749111557519,3.37061158,2600.0,2599.9,7.816]
[1749111557819,3.86898274,2600.0,2599.9,7.816]
[1749111559619,3.86898274,2600.0,2599.9,1.597]
[1749111560695,3.86898274,2600.0,2599.9,7.815]
[1749111563841,3.86898274,2600.0,2599.9,1.597]
[1749111564005,3.86898274,2600.0,2599.9,7.815]
[1749111565729,5.95718274,2600.0,2599.9,7.815]
[1749111565910,5.95718274,2600.0,2599.9,1.597]
[1749111566110,9.32779432,2600.0,2599.8,8.295]
[1749111566332,1.48277943,2599.9,2599.8,8.295]
[1749111566646,3.13897943,2599.9,2599.8,1.597]
[1749111566805,6.50959101,2599.9,2599.8,1.597]
[1749111567012,4.85339101,2599.9,2599.8,1.597]
[1749111567238,4.30339101,2599.9,2599.8,1.597]
[1749111567406,3.37061158,2600.1,2599.8,1.597]
[1749111567808,3.37061158,2600.1,2599.9,6.218]
[1749111568948,0.02,2599.9,2599.8,1.597]
[1749111569153,3.39061158,2599.9,2599.8,1.597]
[1749111570355,3.39061158,2599.9,2599.1,25.637921]
[1749111570654,3.39061158,2599.9,2598.8,30.0]
[1749111572020,3.39061158,2599.9,2599.0,27.293816]
[1749111572221,3.39061158,2599.9,2599.0,16.828635]
[1749111573860,5.02461158,2599.9,2599.2,10.113181]
[1749111574666,5.02461158,2599.9,2599.2,2.6241564]
[1749111574872,5.02461158,2599.9,2599.4,10.0]
[1749111575169,5.02461158,2599.9,2599.3,10.0]
[1749111575337,3.37061158,2599.7,2599.4,9.892]
[1749111575521,3.37061158,2599.7,2599.5,7.815]
[1749111578148,3.37061158,2599.7,2599.4,8.295]
[1749111578466,3.37061158,2599.7,2599.5,7.815]
[1749111579867,3.37061158,2599.7,2599.6,7.815]
[1749111582651,3.39061158,2599.9,2599.6,7.815]
[1749111583471,3.88135274,2599.9,2599.6,7.815]
[1749111584172,3.88135274,2599.9,2599.7,8.295]
[1749111584882,0.02,2599.9,2599.8,4.823743]
[1749111585166,0.02,2599.9,2599.8,18.112251]
[1749111585874,0.02,2599.9,2599.8,16.0]
[1749111588843,3.39061158,2599.9,2599.8,16.0]
[1749111589242,3.39061158,2599.9,2599.8,23.814]
[1749111589558,3.89504274,2599.9,2599.8,7.814]
[1749111589974,3.89504274,2599.9,2599.7,8.295]
[1749111590180,3.89504274,2599.9,2599.8,1.596]
[1749111590337,3.89504274,2599.9,2599.7,8.295]
[1749111590538,1.96750427,2599.8,2599.7,8.295]
[1749111590773,1.96750427,2599.8,2599.7,9.891]
[1749111591680,1.96750427,2599.8,2599.7,1.596]
[1749111593143,2.51750427,2599.8,2599.7,1.596]
[1749111598890,0.55,2599.7,2599.6,14.513]
[1749111599093,0.59081158,2599.7,2599.6,16.109]
[1749111599253,3.76011585,2599.8,2599.6,16.109]
[1749111599449,3.76011585,2599.8,2599.7,7.815]
[1749111599945,3.76011585,2599.8,2599.7,1.597]
[1749111603254,0.55,2599.7,2599.6,8.295]
[1749111603589,1.14153159,2599.7,2599.6,9.892]
[1749111603791,0.55,2599.7,2599.6,9.892]
[1749111604795,3.92061158,2599.7,2599.6,9.892]
[1749111605167,3.92061158,2599.7,2599.6,8.295]
[1749111605373,3.92061158,2599.7,2599.6,9.892]
[1749111606395,3.92061158,2599.7,2599.6,8.295]
[1749111606597,4.51214317,2599.7,2599.6,9.892]
[1749111607603,4.51214317,2599.7,2599.6,1.597]
[1749111607895,1.6615,2599.6,2599.3,8.296]
[1749111608079,0.55,2599.5,2599.4,1.597]
[1749111608279,3.92061158,2599.5,2599.4,1.597]
[1749111608457,4.47882274,2599.5,2599.4,1.597]
[1749111610862,4.47882274,2599.5,2598.0,3.37061158]
[1749111611087,3.37061158,2599.2,2598.1,30.0]
[1749111612002,3.37061158,2599.0,2598.0,30.0]
[1749111612183,3.37061158,2599.0,2597.9,30.0]
[1749111612359,3.37061158,2599.0,2598.1,40.0]
[1749111612703,3.37061158,2599.0,2597.6,0.55]
[1749111612704,3.37061158,2598.6,2597.6,33.37061158]
[1749111612859,3.37061158,2598.8,2597.7,36.219]
[1749111613059,3.37061158,2598.8,2597.8,30.0]
[1749111613598,3.37061158,2598.9,2597.9,16.0]
[1749111613801,3.37061158,2598.9,2598.0,30.0]
[1749111615073,3.37061158,2598.7,2598.0,9.65679]
[1749111615259,3.37061158,2598.7,2598.2,10.0]
[1749111615467,3.37061158,2598.7,2598.1,9.893]
[1749111615700,0.39206116,2598.6,2598.2,6.219]
[1749111616402,4.93731158,2598.7,2598.3,7.815]
[1749111616699,4.93731158,2598.7,2598.4,6.219]
[1749111616999,4.93731158,2598.7,2598.3,1.596]
[1749111617223,1.5667,2598.7,2598.4,6.219]
[1749111617529,3.37061158,2598.6,2598.5,1.597]
[1749111617825,3.91934274,2598.6,2598.5,1.597]
[1749111620622,4.46934274,2598.6,2598.5,1.597]
[1749111621022,6.12564274,2598.6,2598.5,1.597]
[1749111621929,2.0846,2598.5,2598.4,8.297]
[1749111622136,2.0846,2598.5,2598.4,9.894]
[1749111622336,2.68499427,2598.5,2598.4,9.894]
[1749111623801,2.68499427,2598.5,2598.4,8.297]
[1749111624131,2.68499427,2598.5,2598.4,9.894]
[1749111624338,2.68499427,2598.5,2596.4,7.58707408]
[1749111624339,16.55,2597.8,2595.3,10.0]
[1749111624542,16.55,2597.8,2594.1,3.87488293]
[1749111624543,3.37061158,2596.0,2594.3,0.02]
[1749111624764,0.2,2597.3,2595.2,10.773]
[1749111624765,3.37061158,2595.8,2595.2,10.773]
[1749111625069,1.5804,2595.9,2595.2,9.966]
[1749111625254,1.5726,2596.3,2595.2,8.318]
[1749111625452,3.37061158,2595.4,2595.2,8.298]
[1749111625679,1.5726,2596.3,2595.2,8.298]
[1749111625969,3.37061158,2595.4,2595.3,1.747]
[1749111626168,1.5088,2595.5,2595.1,0.02]
[1749111626374,0.55,2595.4,2595.3,1.747]
[1749111626541,1.5004,2596.4,2595.3,1.747]
[1749111626862,1.5004,2596.4,2595.3,1.767]
[1749111627067,3.37061158,2595.9,2595.4,8.436]
[1749111627274,1.5004,2596.4,2595.3,16.02]
[1749111627429,1.5004,2596.4,2595.4,24.871675]
[1749111627759,1.6542,2596.7,2595.7,30.0]
[1749111627979,7.05346542,2596.8,2595.8,16.0]
[1749111628188,7.05346542,2597.1,2595.9,30.0]
[1749111628415,1.6542,2597.2,2595.8,0.97199028]
[1749111628416,1.6542,2597.2,2596.1,14.37668]
[1749111628708,1.90485401,2597.2,2596.4,10.0]
[1749111629005,0.25065401,2597.2,2596.5,8.321]
[1749111629181,0.25065401,2597.2,2596.7,18.628582]
[1749111629384,0.25065401,2597.2,2596.6,1.824]
[1749111629614,8.58856542,2597.6,2596.9,16.0]
[1749111629901,7.05346542,2597.3,2596.6,16.0]
[1749111630092,7.05346542,2597.3,2596.8,16.0]
[1749111630509,7.05346542,2597.3,2596.6,16.0]
[1749111631004,7.05346542,2597.3,2596.8,16.0]
[1749111632006,1.5351,2597.6,2596.8,16.0]
[1749111632303,7.07346542,2597.9,2596.8,16.0]
[1749111633074,0.55,2597.8,2596.8,16.0]
[1749111633269,7.07346542,2597.9,2596.8,16.0]
[1749111633469,7.07346542,2597.9,2596.9,3.72068]
[1749111633695,7.07346542,2597.9,2596.9,9.2612]
[1749111633896,7.05346542,2597.6,2596.8,16.0]
[1749111634095,7.05346542,2597.6,2596.6,16.0]
[1749111634521,7.05346542,2597.6,2596.8,16.0]
[1749111634677,7.05346542,2597.3,2597.0,16.0]
[1749111635076,7.05346542,2597.3,2596.6,16.0]
[1749111635376,7.05346542,2597.3,2596.8,16.0]
[1749111635710,0.57,2597.9,2596.8,16.0]
[1749111635907,7.05346542,2597.6,2596.9,8.425]
[1749111636116,7.05346542,2597.6,2596.6,16.0]
[1749111636309,7.05346542,2597.6,2596.8,16.0]
[1749111637332,7.07346542,2597.9,2597.0,16.0]
[1749111637546,0.02,2597.9,2597.0,16.0]
[1749111637700,0.02,2597.9,2597.1,0.02]
[1749111639489,0.02,2597.9,2597.6,36.677373]
[1749111639679,0.02,2597.9,2597.8,18.012984]
[1749111640018,0.02,2597.9,2597.8,38.684423]
[1749111641122,0.02,2598.9,2598.0,29.589736]
[1749111641432,0.02,2598.9,2597.9,16.02]
[1749111641433,0.02,2598.9,2598.1,16.0]
[1749111642013,0.02,2598.9,2598.4,18.174036]
[1749111642310,0.02,2598.9,2598.5,8.415]
[1749111642675,0.02,2598.9,2598.6,16.02]
[1749111643275,0.02,2598.9,2598.8,27.717356]
[1749111643484,0.02,2598.9,2598.8,25.136776]
[1749111643724,0.02,2598.9,2598.8,25.74715613]
[1749111643927,0.45137076,2599.5,2599.2,30.0]
[1749111644127,0.45137076,2599.5,2599.4,16.433282]
[1749111644706,0.02,2599.9,2599.5,0.55]
[1749111644900,0.02,2599.9,2599.6,37.60346542]
[1749111645229,0.02,2599.9,2599.6,30.0]
[1749111645401,0.02,2599.9,2599.5,30.0]
[1749111645602,0.02,2599.9,2599.6,8.429]
[1749111645816,0.02,2599.9,2599.6,38.429]
[1749111646033,0.02,2599.9,2599.5,30.0]
[1749111646238,0.02,2599.9,2599.6,8.428]
[1749111646593,0.02,2599.9,2599.5,10.0]
[1749111646828,0.02,2599.9,2599.6,8.3]
[1749111646993,7.66235255,2599.7,2599.6,16.728]
[1749111647193,8.4305878,2599.7,2599.6,10.124]
[1749111647430,8.4305878,2599.7,2599.6,16.727]
[1749111647636,10.0125878,2599.7,2599.6,8.3]
[1749111647795,10.5625878,2599.7,2599.6,8.3]
[1749111647996,10.5625878,2599.7,2599.6,10.124]
[1749111648521,10.0125878,2599.7,2599.6,8.3]
[1749111648692,2.95912238,2599.7,2599.6,8.3]
[1749111649038,2.19088713,2599.7,2599.6,16.724]
[1749111650970,1.582,2599.7,2599.6,16.724]
[1749111651735,1.582,2599.7,2599.6,16.71]
[1749111652636,1.582,2599.7,2599.6,16.707]
[1749111654211,1.582,2599.7,2599.6,8.297]
[1749111654422,1.582,2599.7,2599.6,16.701]
[1749111655029,0.57,2599.9,2599.6,16.701]
[1749111655232,0.81020613,2599.8,2599.6,16.701]
[1749111657432,0.02,2599.9,2599.6,16.701]
[1749111657634,0.02,2599.9,2599.6,8.297]
[1749111657951,0.02,2599.9,2599.7,8.371]
[1749111661051,0.02,2599.9,2599.8,19.562235]
[1749111661225,0.02,2599.9,2599.8,19.582235]
[1749111662227,0.02,2600.9,2599.9,16.0]
[1749111662423,0.02,2600.9,2600.2,30.0]
[1749111662629,0.02,2600.9,2600.3,8.363]
[1749111662912,6.03846135,2600.9,2600.4,8.362]
[1749111665228,0.02,2600.9,2600.1,12.57318]
[1749111665431,0.02,2600.9,2600.3,10.0]
[1749111665632,0.02,2600.9,2600.2,6.564]
[1749111665827,0.02,2600.9,2600.3,8.396517]
[1749111666061,0.02,2600.9,2600.5,13.972]
[1749111666265,0.02,2600.9,2600.4,0.02]
[1749111666266,0.02,2600.9,2600.6,1.802]
[1749111668449,0.02,2600.9,2600.5,7.375746]
[1749111668762,0.02,2600.9,2600.6,8.358]
[1749111669173,0.02,2600.9,2600.4,0.02]
[1749111669353,0.02,2600.9,2600.5,8.357]
[1749111669568,0.02,2600.9,2600.6,8.357]
[1749111669880,0.62384613,2600.9,2600.2,3.183628]
[1749111670068,0.62384613,2600.9,2600.1,0.02]
[1749111670260,0.62384613,2600.9,2600.2,10.659985]
[1749111670463,0.62384613,2600.9,2600.4,10.0]
[1749111670857,0.62384613,2600.9,2600.5,6.551]
[1749111671060,0.02,2600.9,2600.5,6.551]
[1749111672449,0.02,2600.9,2600.2,1.802]
[1749111672677,0.02,2600.9,2600.4,10.0]
[1749111672984,0.02,2600.9,2600.5,8.346]
[1749111673351,7.04508468,2600.9,2600.5,8.346]
[1749111673551,0.70450847,2600.8,2600.5,8.346]
[1749111674286,0.02,2600.9,2600.5,8.346]
[1749111675660,0.02,2600.9,2600.5,1.802]
[1749111675857,0.02,2600.9,2600.6,6.536]
[1749111676396,0.02,2600.9,2600.7,8.335]
[1749111676601,0.02,2600.9,2600.8,1.802]
[1749111676912,1.6021,2600.8,2600.2,3.782215]
[1749111677054,1.6021,2600.8,2600.3,8.335]
[1749111678919,0.02,2600.9,2600.4,11.3547]
[1749111679058,0.02,2600.9,2600.4,3.473393]
[1749111679257,0.02,2600.9,2600.5,3.97437]
[1749111679808,0.02,2600.9,2600.5,3.47037]
[1749111683213,0.02,2600.9,2600.7,40.0]
[1749111683371,0.02,2600.9,2600.8,18.509664]
[1749111683571,0.02,2600.9,2600.8,1.801]
[1749111683798,0.02,2600.9,2600.8,13.27884]
[1749111684312,0.02,2600.9,2600.8,8.317]
[1749111684528,0.02,2600.9,2600.8,8.316]
[1749111684693,0.02,2600.9,2600.8,1.801]
[1749111684906,0.02,2600.9,2600.8,8.315]
[1749111686515,0.02,2600.9,2600.2,0.02]
[1749111686686,1.589,2600.8,2600.3,1.801]
[1749111686882,1.589,2600.8,2600.4,8.311]
[1749111687116,1.589,2600.8,2599.8,0.02]
[1749111687117,7.02508468,2600.7,2599.8,0.02]
[1749111687333,7.02508468,2600.7,2600.0,10.150023]
[1749111687489,7.02508468,2600.7,2600.0,4.217833]
[1749111687838,7.02508468,2600.7,2600.1,10.0]
[1749111688004,7.02508468,2600.7,2600.1,5.09]
[1749111688204,7.02508468,2600.7,2600.0,10.0]
[1749111688398,7.02508468,2600.7,2600.2,10.0]
[1749111688612,7.02508468,2600.7,2600.0,18.560441]
[1749111688800,7.02508468,2600.7,2600.0,8.560441]
[1749111689488,7.02508468,2600.7,2600.1,10.0]
[1749111690028,7.02508468,2600.7,2600.2,1.767]
[1749111690187,0.86140847,2600.6,2599.8,0.02]
[1749111690389,0.86140847,2600.6,2599.9,18.268]
[1749111690631,0.86140847,2600.6,2599.9,8.268]
[1749111691826,0.86140847,2600.6,2600.1,10.0]
[1749111692029,0.86140847,2600.6,2600.2,8.264]
[1749111692030,7.02508468,2600.4,2600.2,8.264]
[1749111692586,1.5209,2600.3,2599.7,10.0]
[1749111692891,1.5209,2600.3,2599.2,0.02]
[1749111692892,7.02508468,2600.1,2599.2,0.02]
[1749111693092,7.02508468,2600.1,2599.8,1.767]
[1749111693619,7.02508468,2600.1,2599.2,0.02]
[1749111693813,7.02508468,2600.1,2599.9,1.767]
[1749111695037,7.02508468,2600.1,2600.0,10.058]
[1749111696229,7.02508468,2600.1,2600.0,16.548]
[1749111696392,7.87968315,2600.1,2600.0,16.548]
[1749111698934,1.5209,2600.3,2600.0,16.548]
[1749111699134,0.02,2600.9,2600.0,16.548]
[1749111699135,8.62648468,2600.6,2600.0,16.548]
[1749111699301,1.6014,2600.6,2600.0,16.548]
[1749111700975,1.6619,2600.8,2600.0,16.548]
[1749111701675,1.6619,2600.8,2600.1,27.838626]
[1749111701873,7.04508468,2600.9,2600.0,16.548]
[1749111701874,0.02,2600.9,2600.3,22.755291]
[1749111702075,0.02,2600.9,2600.3,19.995681]
[1749111702249,0.02,2600.9,2600.5,30.0]
[1749111702453,0.02,2600.9,2600.8,16.0]
[1749111702656,0.02,2600.9,2600.8,32.025743]
[1749111705271,0.02,2600.9,2600.5,16.0]
[1749111705580,0.02,2600.9,2600.7,20.745816]
[1749111705879,0.02,2600.9,2600.8,5.22426]
[1749111706380,0.02,2600.9,2600.8,6.472]
[1749111706849,0.02,2600.9,2600.8,9.293816]
[1749111707180,0.02,2600.9,2600.8,8.237]
[1749111707606,0.02,2600.9,2600.8,12.488632]
[1749111709071,0.02,2600.9,2600.8,28.488632]
[1749111711511,0.02,2600.9,2600.8,1.767]
[1749111712085,0.02,2600.9,2600.8,24.866593]
[1749111712480,0.02,2600.9,2600.8,31.323593]
[1749111712975,0.02,2600.9,2600.8,31.93397313]
[1749111713292,0.02,2600.9,2600.8,47.93397313]
[1749111713612,0.02,2600.9,2600.8,20.284737]
[1749111713794,0.02,2600.9,2600.8,28.507737]
[1749111713970,0.02,2600.9,2600.8,22.051737]
[1749111714171,0.02,2600.9,2600.8,28.507737]
[1749111714410,0.02,2600.9,2600.8,17.767]
[1749111714814,0.02,2600.9,2600.8,26.54875]
[1749111715856,0.02,2600.9,2600.8,24.219]
[1749111716060,0.02,2600.9,2600.8,54.219]
[1749111718937,0.02,2600.9,2600.8,58.61397077]
[1749111719140,0.02,2600.9,2600.8,46.40446481]
[1749111719338,0.02,2601.9,2601.1,4.39452731]
[1749111719543,0.02,2601.9,2601.4,40.0]
[1749111719740,0.02,2601.9,2601.6,30.0]
[1749111721148,0.02,2601.9,2601.8,56.55]
[1749111721334,0.02,2601.9,2601.8,50.39349296]
[1749111721521,0.02,2601.9,2601.8,46.55]
[1749111721727,0.02,2601.9,2601.7,11.47905839]
[1749111721728,0.02,2602.9,2602.2,16.0]
[1749111721924,0.02,2602.9,2602.6,30.0]
[1749111722240,0.02,2602.9,2602.7,16.0]
[1749111722442,0.02,2602.9,2602.8,8.187]
[1749111722443,1.5464,2602.9,2602.8,8.187]
[1749111722845,0.02,2602.9,2602.8,16.475]
[1749111723220,0.02,2602.9,2602.8,10.022]
[1749111723433,0.02,2602.9,2602.8,16.475]
[1749111726960,7.04508468,2602.9,2602.8,8.288]
[1749111727122,7.74959315,2602.9,2602.8,10.022]
[1749111727457,7.74959315,2602.9,2602.8,16.465]
[1749111727657,7.74959315,2602.9,2602.8,8.288]
[1749111727954,7.74959315,2602.9,2602.8,16.463]
[1749111728456,1.32495932,2602.8,2600.0,3.84606647]
[1749111728629,7.02508468,2601.6,2600.3,30.0]
[1749111728830,8.68508468,2601.9,2600.7,30.0]
[1749111729030,1.66,2602.3,2601.0,16.0]
[1749111729230,1.66,2602.3,2601.4,16.0]
[1749111729442,1.66,2602.3,2601.6,16.0]
[1749111729653,1.66,2602.3,2601.8,21.05121]
[1749111729960,1.66,2602.3,2602.0,3.14968]
[1749111730175,1.66,2602.3,2602.1,10.0]